[Event "TePe Sigeman Co 2024"]
[Site "Malmo"]
[Date "2024.04.28"]
[Round "2.2"]
[White "Ju, Wenjun"]
[Black "Svidler, Peter"]
[Result "0-1"]
[ECO "A41"]
[WhiteElo "2559"]
[BlackElo "2689"]
[Annotator "TA"]
[PlyCount "100"]
[EventDate "2024.04.27"]
[EventType "tourn"]
[EventCountry "SWE"]
[SourceTitle "playchess.com"]
[Source "ChessBase"]
[SourceQuality "1"]
[TimeControl "40/5400+30:1800+30"]

{[%evp 12,100,29,29,44,37,51,10,15,15,18,15,37,6,7,3,12,-76,-82,-111,-139,-114,-127,-131,-124,-129,-97,-140,-135,-167,-190,-183,-162,-137,-169,-166,-166,-181,-157,-170,-172,-177,-175,-181,-172,-183,-116,-129,-115,-145,-137,-153,-158,-153,-135,-150,-155,-143,-153,-145,-140,-148,-155,-144,-154,-178,-173,-208,-203,-243,-242,-279,-239,-259,-245,-252,-262,-234,-235,-377,-395,-380,-394,-497,-490,-522,-550,-578,-606,-543,-516]} 1. d4 {[%emt 0:00:03]} d6 {[%emt 0:00:30]} 2. g3 {[%emt 0:00:45]} g6 {[%emt 0:02:10]} 3. Bg2 {[%emt 0:00:09]} Bg7 {[%emt 0:00:03]} 4. Nf3 {[%emt 0:02:14][%cal Bg1f3,Bf3d2,Bd2c4][%mdl 32]} Nd7 {[%emt 0:06:01]} 5. O-O {[%emt 0:03:41]} e5 {[%emt 0:02:33]} 6. dxe5 {[%emt 0:00:36]} dxe5 {[%emt 0:00:19]} 7. Nc3 {[%emt 0:00:17]} Ngf6 {[%emt 0:04:36]} 8. Nd2 {[%emt 0:08:05]} O-O {[%emt 0:01:08]} 9. Nc4 {[%emt 0:00:04]} Re8 {[%emt 0:02:41] The position is equal.} 10. a4 {[%emt 0:03:34]} e4 {[%emt 0:09:56]} 11. a5 {[%emt 0:33:47]} Qe7 $1 {[%emt 0:10:29]} 12. Be3 {[%emt 0:02:48]} Nc5 {[%emt 0:11:26]} 13. Qd4 {[%emt 0:12:48]} Na6 {[%emt 0:02:43]} 14. Qd1 {[%emt 0:09:28]} (14. Bg5 $11) 14... Be6 $17 {[%emt 0:01:31]} 15. Nd2 {[%emt 0:02:55]} Ng4 {[%emt 0:00:30] ...Nxe3 is the strong threat.} 16. Ndxe4 {[%emt 0:00:21]} Nxe3 {[%emt 0:00:15]} 17. fxe3 {[%emt 0:00:02]} Rad8 {[%emt 0:05:04] Prevents Nd5.} 18. Qc1 {[%emt 0:00:04]} c6 {[%emt 0:07:50][%mdl 1024] Black has strong compensation.} 19. Ra3 {[%emt 0:01:39]} Bf5 {[%emt 0:02:39]} 20. h3 {[%emt 0:04:11]} h5 {[%emt 0:04:06]} 21. Kh1 {[%emt 0:02:28]} Nc5 {[%emt 0:09:33]} 22. Nxc5 {[%emt 0:00:54]} Qxc5 {[%emt 0:00:01]} 23. e4 {[%emt 0:00:19]} Be6 {[%emt 0:00:04]} 24. Nd1 {[%emt 0:02:13]} Qb5 {[%emt 0:00:57]} 25. Nc3 {[%emt 0:02:29]} Qe5 {[%emt 0:01:26][%cal Og7f8]} 26. Qe3 {[%emt 0:00:48]} Bf8 {[%emt 0:01:07][%cal Bg7f8,Bf8d6,Bd6e5][%mdl 32]} 27. Raa1 {[%emt 0:00:33]} Bd6 {[%emt 0:01:31][%cal Oh5h4]} 28. Qf4 {[%emt 0:00:12]} g5 {[%emt 0:02:06]} (28... Qc5 $19 29. e5 Bxe5) 29. Qxe5 {[%emt 0:00:12]} Bxe5 {[%emt 0:00:02]} 30. Rf3 {[%emt 0:00:13]} g4 {[%emt 0:06:49]} 31. hxg4 {[%emt 0:00:40]} hxg4 {[%emt 0:00:01]} 32. Rd3 {[%emt 0:00:41] [#]} Bc4 $1 {[%emt 0:00:02]} 33. Rxd8 {[%emt 0:02:45]} Rxd8 {[%emt 0:00:05]} 34. Bf1 {[%emt 0:00:05]} Rd2 $36 {[%emt 0:01:37][%mdl 2048] White is under strong pressure.} 35. Rc1 {[%emt 0:02:09]} Bxg3 {[%emt 0:00:57]} 36. Nb1 {[%emt 0:00:39]} Rd8 {[%emt 0:00:54] Black has more active pieces.} 37. e3 {[%emt 0:00:03] Against Bf4} Be6 {[%emt 0:00:50]} 38. Kg2 {[%emt 0:02:06] Wards off Bf2} Be5 {[%emt 0:00:15]} 39. c3 {[%emt 0:00:03]} Kg7 {[%emt 0:00:22]} 40. Be2 {[%emt 0:00:35]} Bc7 {[%emt 0:03:53]} 41. a6 {[%emt 0:09:04]} bxa6 {[%emt 0:11:30]} 42. Bxa6 {[%emt 0:01:24]} Rh8 {[%emt 0:00:26]} 43. Rh1 {[%emt 0:00:13] Prevents Rh2+.} Rb8 {[%emt 0:00:05]} 44. b4 {[%emt 0:00:41]} c5 {[%emt 0:00:05]} 45. b5 {[%emt 0:02:25]} (45. Rc1 {was called for.}) 45... Kg6 $19 {[%emt 0:03:35]} 46. Kf2 {[%emt 0:05:24]} Be5 {[%emt 0:01:34]} 47. Ke2 {[%emt 0:10:27]} Bc4+ {[%emt 0:01:44] Black is clearly winning.} 48. Kd1 {[%emt 0:00:36]} Bd3 {[%emt 0:02:57] This pair of bishops is nice.} 49. Nd2 {[%emt 0:00:05]} Bxc3 {[%emt 0:00:34][%cal Ob8d8] Threatens to win with ...Rd8!} 50. Rg1 {[%emt 0:00:05]} Kh5 {[%emt 0:00:13] Weighted Error Value: White=0.21 (precise) /Black=0.05 (flawless) .  Mistake:       	White=2     	Black=1      Inaccurate:     	White=4     	---        OK:         	White=16    	Black=27     Best:        	White=1     	Black=1      Strong:       	---       	Black=1} (50... Bxb5 51. Bxb5 Rxb5 52. Rxg4+ Kf6 53. Rf4+ Ke6 54. Nf3 $17) 0-1

[Event "TePe Sigeman Co 2024"]
[Site "Malmo"]
[Date "2024.04.28"]
[Round "2.3"]
[White "Abdusattorov, Nodirbek"]
[Black "Erigaisi Arjun"]
[Result "1/2-1/2"]
[ECO "D12"]
[WhiteElo "2765"]
[BlackElo "2756"]
[Annotator "TA"]
[PlyCount "70"]
[EventDate "2024.04.27"]
[EventType "tourn"]
[EventCountry "SWE"]
[SourceTitle "playchess.com"]
[Source "ChessBase"]
[SourceQuality "1"]
[TimeControl "40/5400+30:1800+30"]

{[%evp 11,70,28,32,22,23,-13,10,10,16,0,14,0,0,-27,-45,-35,-35,-45,-33,-53,-35,-38,-37,-55,-32,-33,-17,-21,-43,-21,-12,-12,-13,-16,-2,-68,-63,-94,-35,-52,0,0,0,-61,0,0,0,0,-5,-8,0,0,0,0,0,0,0,0,0,0,0]} 1. c4 {[%emt 0:00:03]} c6 {[%emt 0:00:12]} 2. Nf3 {[%emt 0:00:21]} d5 {[%emt 0:00:07]} 3. d4 {[%emt 0:00:15]} Nf6 {[%emt 0:00:07]} 4. e3 {[%emt 0:00:14]} Bf5 {[%emt 0:00:07]} 5. Nc3 {[%emt 0:02:20]} e6 {[%emt 0:00:09]} 6. Nh4 {[%emt 0:00:25]} Bg6 {[%emt 0:00:54]} 7. Bd2 {[%emt 0:03:42]} Nbd7 {[%emt 0:05:43]} 8. cxd5 {[%emt 0:00:14] [#] And now Nxg6 would win.} exd5 {[%emt 0:00:06]} 9. Nxg6 {[%emt 0:00:04]} hxg6 {[%emt 0:00:06]} 10. h4 {[%emt 0:00:48]} Bb4 {[%emt 0:07:38]} 11. Bd3 {[%emt 0:05:56]} Qe7 {[%emt 0:39:53]} 12. a3 {[%emt 0:09:55]} Bxc3 {[%emt 0:00:59]} 13. Bxc3 {[%emt 0:00:08]} Ne4 {[%emt 0:00:05]} 14. Bb4 {[%emt 0:01:30]} Qe6 {[%emt 0:05:34]} 15. a4 {[%emt 0:04:19]} g5 {[%emt 0:01:23]} 16. h5 {[%emt 0:07:58]} g4 {[%emt 0:00:25]} 17. Qc2 {[%emt 0:10:43]} g3 {[%emt 0:01:32]} 18. Bxe4 {[%emt 0:00:02]} gxf2+ {[%emt 0:00:06]} 19. Qxf2 {[%emt 0:00:09]} dxe4 {[%emt 0:05:01]} 20. O-O-O {[%emt 0:00:51][%cal Od4d5]} Nb6 {[%emt 0:02:30]} 21. Rdf1 {[%emt 0:03:21]} Nd5 {[%emt 0:02:07]} 22. Bd2 {[%emt 0:08:50]} (22. Bc5 {is interesting.} f6 23. Qg3 Rg8 24. Qh3) 22... f6 {[%emt 0:01:07]} 23. a5 {[%emt 0:01:23]} (23. g4 $11) 23... O-O-O $15 {[%emt 0:01:51][%cal Ba8d8,Bd8d7,Bd7g7][%mdl 32]} 24. a6 {[%emt 0:00:35]} bxa6 {[%emt 0:01:14]} ({Better is} 24... c5 $17 {Strongly threatening ...cxd4.} 25. axb7+ Kxb7 26. dxc5 Qa6) 25. Kb1 {[%emt 0:03:25]} Nb6 {[%emt 0:02:11]} (25... Kb7 $15) 26. h6 $11 {[%emt 0:01:44]} Rd7 {[%emt 0:09:14]} 27. Ba5 {[%emt 0:06:49]} (27. hxg7 $11 Rxh1 28. Rxh1 Rxg7 29. Rh8+ Kb7 30. Qf4) 27... Kb7 {[%emt 0:01:29]} (27... gxh6 $6 28. Qxf6 Qxf6 29. Rxf6 $11) (27... Rxh6 28. Rxh6 gxh6 29. Qxf6 Qxf6 30. Rxf6 $16) (27... Nd5 $1 $15) 28. hxg7 {[%emt 0:04:49] The position is equal.} Rxh1 {[%emt 0:00:06]} 29. Rxh1 {[%emt 0:00:09]} Rxg7 {[%emt 0:00:04]} 30. Rh8 {[%emt 0:02:16]} Qb3 {[%emt 0:01:41] [#] ...Qd1+ would now be deadly.} 31. Qf4 {[%emt 0:01:07][%csl Gf4][%cal Rh8b8]} (31. Qxf6 $2 {loses.} Rf7 $19 (31... Rxg2 32. Qe7+) (31... Rxg2 32. Qe7+)) 31... Qd1+ {[%emt 0:00:16]} 32. Ka2 {[%emt 0:00:05][%csl Gf4][%cal Rh8b8]} Qa4+ {[%emt 0:00:04]} 33. Kb1 {[%emt 0:00:04][%csl Gh8][%cal Rf4b8] The board is on fire.} Qd1+ {[%emt 0:00:06]} 34. Ka2 {[%emt 0:00:03][%csl Gf4][%cal Rh8b8]} Qa4+ {[%emt 0:00:06]} 35. Kb1 {[%emt 0:00:02][%csl Gf4][%cal Rh8b8]} Qd1+ {[%emt 0:00:06] Weighted Error Value: White=0.15 (very precise) /Black=0.10 (very precise) .  Mistake:       	White=2     	Black=3      Inaccurate:     	White=3     	---        OK:         	White=5     	Black=10     Best:        	White=2     	Black=1} 1/2-1/2

[Event "TePe Sigeman Co 2024"]
[Site "Malmo"]
[Date "2024.04.28"]
[Round "2.4"]
[White "Keymer, Vincent"]
[Black "Grandelius, Nils"]
[Result "1-0"]
[ECO "D45"]
[WhiteElo "2726"]
[BlackElo "2664"]
[Annotator "TA"]
[PlyCount "73"]
[EventDate "2024.04.27"]
[EventType "tourn"]
[EventCountry "SWE"]
[SourceTitle "playchess.com"]
[Source "ChessBase"]
[SourceQuality "1"]
[TimeControl "40/5400+30:1800+30"]

{[%evp 22,73,31,0,0,0,6,7,18,17,1,8,8,0,0,0,0,-11,30,7,38,53,58,26,176,165,166,172,166,182,154,193,183,182,181,180,165,183,187,177,232,228,349,361,500,499,714,714,894,443,443,423,393,345]} 1. d4 {[%emt 0:00:04]} d5 {[%emt 0:00:36]} 2. c4 {[%emt 0:00:04]} c6 {[%emt 0:00:34]} 3. Nf3 {[%emt 0:00:04]} Nf6 {[%emt 0:00:07]} 4. Nc3 {[%emt 0:00:03]} e6 {[%emt 0:01:05]} 5. e3 {[%emt 0:00:04]} a6 {[%emt 0:00:39]} 6. h3 {[%emt 0:00:04] D45: Semi-Slav: 5 e3.} Nbd7 {[%emt 0:01:45]} 7. Qc2 {[%emt 0:00:19]} b6 $146 {[%emt 0:01:18]} ({Predecessor:} 7... dxc4 8. a4 b5 9. axb5 cxb5 10. Nxb5 Bb7 11. Nc3 Rc8 12. Be2 Bb4 13. O-O O-O {1-0 Keymer,V (2693)-Kempinski,R (2549) POL-chT Ekstraliga 2022 (1.1)}) 8. b3 {[%emt 0:00:11]} Bb7 {[%emt 0:00:52]} 9. Bb2 {[%emt 0:00:04]} dxc4 {[%emt 0:00:06]} 10. bxc4 {[%emt 0:00:15]} Bb4 {[%emt 0:00:13]} 11. a3 {[%emt 0:02:24]} Ba5 {[%emt 0:01:37]} 12. e4 {[%emt 0:00:05]} c5 {[%emt 0:03:51]} 13. d5 {[%emt 0:00:10]} exd5 {[%emt 0:00:05]} 14. exd5 {[%emt 0:00:04]} O-O {[%emt 0:00:51]} (14... Bxc3+ $6 15. Bxc3 (15. Qxc3 O-O $11) 15... b5 16. Be2 $16 (16. cxb5 O-O $11)) 15. Be2 {[%emt 0:00:03]} b5 {[%emt 0:00:08]} 16. O-O {[%emt 0:00:06]} bxc4 {[%emt 0:00:23]} 17. Bxc4 {[%emt 0:01:02]} Nb6 {[%emt 0:01:59]} 18. Ba2 {[%emt 0:00:24]} c4 {[%emt 0:01:32]} 19. Rad1 {[%emt 0:00:20]} Re8 {[%emt 0:00:21]} (19... Nfxd5 {looks sharper.} 20. Na4 Rc8 21. Nxb6 Qxb6 22. Bxc4 Bc3) 20. Rd4 {[%emt 0:25:46]} h6 {[%emt 0:36:40]} 21. Rfd1 {[%emt 0:09:34]} Rc8 {[%emt 0:21:19]} 22. Bb1 {[%emt 0:03:27]} (22. Nh4 $5) 22... Qe7 {[%emt 0:00:21]} (22... Nfxd5 $2 23. Qh7+ Kf8 24. Nxd5 Nxd5 25. Rxd5 Qxd5 26. Qxg7+ (26. Rxd5 Bxd5 27. Qxg7+ Ke7 $18) 26... Ke7 27. Qf6+ (27. Rxd5 Bxd5 28. Qf6+ Kf8 $18) 27... Kd7 28. Bf5+ (28. Rxd5+ Bxd5 29. Bf5+ Kc7 $18) (28. Qxf7+ Kd6 $18) 28... Kc7 29. Rxd5 $18) (22... Nbxd5 $2 23. Nxd5 g6 (23... Bxd5 $2 24. Rxd5 Qb6 25. Bxf6 $18) 24. Ne3 $18) (22... Bxc3 $11 23. Bxc3 Nbxd5 (23... Bxd5 $2 24. Rg4 $18)) 23. d6 $18 {[%emt 0:03:47]} Qd7 {[%emt 0:03:49]} 24. Rf4 $1 {[%emt 0:10:55]} Bxc3 {[%emt 0:03:17]} 25. Bxc3 {[%emt 0:02:38]} (25. Qxc3 Na4 $11 (25... Nbd5 26. Rxd5 Bxd5 27. Rxf6 $11) (25... Nbd5 26. Rxd5 Bxd5 27. Rxf6 $11)) 25... Be4 {[%emt 0:03:13] [#]} (25... Nbd5 $2 26. Rxd5 Bxd5 27. Bxf6 $18) 26. Qc1 $1 {[%emt 0:10:12]} Nbd5 {[%emt 0:14:06] [#]} 27. Rxd5 $1 {[%emt 0:06:03]} Nxd5 {[%emt 0:00:48]} 28. Bxe4 {[%emt 0:00:05]} (28. Rxe4 $6 Rxe4 29. Bxe4 Nxc3 30. Qxc3 Qxd6 $16) 28... Nxc3 {[%emt 0:01:36]} 29. Qxc3 {[%emt 0:00:03]} Qxd6 {[%emt 0:00:17]} 30. g3 {[%emt 0:01:03]} Qd1+ {[%emt 0:00:43]} (30... Rc7 $142 31. h4 Rc5) 31. Kg2 {[%emt 0:01:34]} Qb3 {[%emt 0:01:08]} (31... Qd6 {was necessary.} 32. Bb1 Rc7) 32. Qd4 $18 {[%emt 0:01:21]} Qxa3 {[%emt 0:00:36]} 33. Bd5 {[%emt 0:01:11]} Rc7 {[%emt 0:00:10]} (33... Qd3 $142 34. Bxf7+ (34. Bxc4 Qxd4 35. Bxf7+ Kh7 $18) 34... Kh7 35. Bxe8 (35. Bxc4 Qxd4 36. Rxd4 a5 $18) 35... Qxd4 36. Rxd4 Rxe8 37. Rxc4 Rd8) 34. Ne5 $18 {[%emt 0:00:44]} Rf8 {[%emt 0:00:44]} 35. Bxc4 {[%emt 0:04:05]} (35. Ng4 $142 {[%cal Og4h6] Intending Nxh6+! and mate.} h5 36. Nf6+ (36. Ne3 Qe7 $18) 36... gxf6 37. Qxf6 (37. Bxc4 Qc5 $17)) 35... Qc5 $18 {[%emt 0:00:37]} 36. Qxc5 {[%emt 0:01:24]} ({Less strong is} 36. Bxa6 Qxd4 37. Rxd4 g6 $16) 36... Rxc5 {[%emt 0:00:05]} 37. Nd7 {[%emt 0:00:01]} ({Weaker is} 37. Nxf7 Rxc4 38. Nxh6+ (38. Rxc4 Rxf7 39. h4 a5 $11) 38... gxh6 $16) 1-0

[Event "TePe Sigeman Co 2024"]
[Site "Malmo"]
[Date "2024.04.29"]
[Round "3.1"]
[White "Svidler, Peter"]
[Black "Abdusattorov, Nodirbek"]
[Result "1/2-1/2"]
[ECO "A20"]
[WhiteElo "2689"]
[BlackElo "2765"]
[Annotator "TA"]
[PlyCount "81"]
[EventDate "2024.04.27"]
[EventType "tourn"]
[EventCountry "SWE"]
[SourceTitle "playchess.com"]
[Source "ChessBase"]
[SourceQuality "1"]
[TimeControl "40/5400+30:1800+30"]

{[%evp 9,81,25,11,24,27,23,25,21,20,16,22,0,8,0,17,7,8,-43,0,0,25,29,19,25,23,33,47,-6,-8,-12,-10,-28,-29,-23,-20,-19,-8,-8,0,0,0,0,0,0,0,0,0,0,7,0,0,0,0,0,0,0,0,0,6,6,7,6,6,8,8,5,5,5,5,5,5,5,5,1]} 1. c4 {[%emt 0:00:27]} e5 {[%emt 0:00:16]} 2. g3 {[%emt 0:00:14]} c6 {[%emt 0:00:06]} 3. d4 {[%emt 0:04:42]} exd4 {[%emt 0:00:26]} 4. Qxd4 {[%emt 0:00:06]} Na6 {[%emt 0:01:22]} 5. Nf3 {[%emt 0:03:05]} Nf6 {[%emt 0:01:16]} 6. Bg2 {[%emt 0:03:09]} Bc5 {[%emt 0:00:09]} 7. Qe5+ {[%emt 0:00:36]} Be7 {[%emt 0:00:16][%cal Bc5e7,Be7b4,Bb4a5][%mdl 32]} 8. Nc3 {[%emt 0:02:13] White has an edge.} O-O {[%emt 0:01:03]} 9. O-O {[%emt 0:00:39][%cal Bh1f1,Bf1d1,Bd1d2][%mdl 32]} Re8 {[%emt 0:00:12]} 10. Qf4 {[%emt 0:11:36]} Bb4 {[%emt 0:15:48]} 11. Rd1 {[%emt 0:12:35]} Nc5 {[%emt 0:04:54][%cal Oc5a4]} 12. Bd2 {[%emt 0:03:03][%cal Oc3d5]} Nce4 {[%emt 0:01:56]} 13. Rac1 {[%emt 0:10:03]} ({Wrong is} 13. Nxe4 $2 Rxe4 14. Bxb4 Rxf4 15. gxf4 Qe8 $19) (13. Nd4 $11 Nxd2 14. Qxd2) 13... d6 {[%emt 0:23:31]} (13... d5 {keeps more tension.} 14. Nxd5 Nh5 15. Qc7 Bxd2 16. Nxd2 Nxd2 17. Rxd2 cxd5 18. Qxd8 Rxd8 19. Rxd5 Bg4) 14. Nd4 {[%emt 0:11:51]} Nxd2 {[%emt 0:03:25]} 15. Rxd2 {[%emt 0:00:39]} Ba5 {[%emt 0:10:32]} 16. Nf5 {[%emt 0:15:06]} Bxf5 {[%emt 0:02:01]} 17. Qxf5 {[%emt 0:00:17]} Re5 {[%emt 0:02:44]} 18. Qxe5 {[%emt 0:05:16]} ({White should play} 18. Qc2 $14) 18... dxe5 $11 {[%emt 0:00:07]} 19. Rxd8+ {[%emt 0:00:04]} Rxd8 {[%emt 0:00:07]} 20. Ne4 {[%emt 0:00:06]} Nxe4 {[%emt 0:01:59]} 21. Bxe4 {[%emt 0:00:17][%mdl 4096] Endgame. KRB-KRB} Rd2 {[%emt 0:00:09]} 22. Rc2 {[%emt 0:00:12] The position is equal.} Rd4 {[%emt 0:03:58]} 23. Bf5 {[%emt 0:01:25]} c5 {[%emt 0:02:14]} 24. e3 {[%emt 0:01:07]} Rd1+ {[%emt 0:00:22]} 25. Kg2 {[%emt 0:00:05]} h5 {[%emt 0:01:20]} 26. Be4 {[%emt 0:00:25]} b6 {[%emt 0:00:05][%cal Bb7b6,Bb6b5][%mdl 32]} 27. f4 {[%emt 0:03:09]} exf4 {[%emt 0:00:05]} 28. exf4 {[%emt 0:00:10]} g6 {[%emt 0:00:08]} 29. Bd5 {[%emt 0:00:56]} Kf8 {[%emt 0:00:31]} 30. Kh3 {[%emt 0:04:10]} Rd4 {[%emt 0:00:22]} 31. Re2 {[%emt 0:00:53]} b5 {[%emt 0:01:02]} 32. b3 {[%emt 0:00:08]} Bc3 {[%emt 0:01:34]} 33. Re3 {[%emt 0:01:13]} Ba5 {[%emt 0:02:02]} 34. Bc6 {[%emt 0:01:30]} bxc4 {[%emt 0:00:10]} 35. Re8+ {[%emt 0:00:01]} Kg7 {[%emt 0:00:07]} 36. bxc4 {[%emt 0:00:06]} Rxc4 {[%emt 0:06:59]} 37. Re7 {[%emt 0:00:18]} Bb6 {[%emt 0:03:58] [#]} 38. Rxf7+ $1 {[%emt 0:01:02]} Kxf7 {[%emt 0:00:09]} 39. Bd5+ {[%emt 0:00:02]} Kf6 {[%emt 0:00:11]} 40. Bxc4 {[%emt 0:00:03]} g5 {[%emt 0:00:21]} 41. fxg5+ {[%emt 0:30:09] Weighted Error Value: White=0.07 (flawless) /Black=0.05 (flawless) .  Mistake:       	White=2     	---        Inaccurate:     	---       	Black=1      OK:         	White=13    	Black=15     Best:        	White=3     	Black=2} 1/2-1/2

[Event "TePe Sigeman Co 2024"]
[Site "Malmo"]
[Date "2024.04.29"]
[Round "3.3"]
[White "Korobov, Anton"]
[Black "Keymer, Vincent"]
[Result "1/2-1/2"]
[ECO "E22"]
[WhiteElo "2651"]
[BlackElo "2726"]
[Annotator "TA"]
[PlyCount "122"]
[EventDate "2024.04.27"]
[EventType "tourn"]
[EventCountry "SWE"]
[SourceTitle "playchess.com"]
[Source "ChessBase"]
[SourceQuality "1"]
[TimeControl "40/5400+30:1800+30"]

{[%evp 30,122,43,57,43,41,53,40,52,53,40,51,50,45,47,51,53,43,58,57,76,70,70,34,83,33,19,28,34,33,22,24,26,32,21,29,34,32,34,31,43,36,64,64,64,48,50,0,64,64,64,64,64,64,64,64,64,51,58,60,60,36,75,20,20,20,20,20,20,20,20,0,0,0,13,13,13,13,13,13,13,13,13,8,8,8,8,8,8,8,8,8,8,0,19]} 1. d4 {[%emt 0:00:03]} Nf6 {[%emt 0:00:04]} 2. c4 {[%emt 0:00:11]} e6 {[%emt 0:00:04]} 3. Nc3 {[%emt 0:00:23]} Bb4 {[%emt 0:00:04]} 4. Nf3 {[%emt 0:00:09]} O-O {[%emt 0:00:06]} 5. Qb3 {[%emt 0:02:00]} c5 {[%emt 0:01:29]} 6. dxc5 {[%emt 0:00:46] E22: Nimzo-Indian: 4 Qb3.} Na6 {[%emt 0:10:37]} 7. Bd2 {[%emt 0:00:48]} Qe7 {[%emt 0:10:19]} 8. e3 {[%emt 0:15:38]} Nxc5 {[%emt 0:01:28]} 9. Qc2 {[%emt 0:00:23]} b6 {[%emt 0:13:11]} 10. Be2 {[%emt 0:00:23]} Bb7 {[%emt 0:00:37]} 11. O-O {[%emt 0:00:08]} Rac8 {[%emt 0:04:55]} 12. Rac1 {[%emt 0:03:14]} a5 $146 {[%emt 0:14:56]} ({Predecessor:} 12... Nce4 13. Nxe4 Nxe4 14. Bxb4 Qxb4 15. Bd3 d5 16. Qb1 Nf6 17. cxd5 Bxd5 18. a3 Qd6 {½-½ Filip,M-Fischer,R Candidates Tournament-05 1962 (10)}) 13. a3 {[%emt 0:05:15]} Bxc3 {[%emt 0:00:32]} 14. Bxc3 {[%emt 0:00:20]} Nfe4 {[%emt 0:03:04]} 15. Be1 {[%emt 0:11:09]} d6 {[%emt 0:12:03]} 16. b4 {[%emt 0:05:58]} axb4 {[%emt 0:02:03]} 17. axb4 {[%emt 0:00:38]} Nd7 {[%emt 0:00:02]} 18. Nd2 {[%emt 0:01:23]} Nxd2 {[%emt 0:06:26]} 19. Qxd2 {[%emt 0:00:20]} d5 {[%emt 0:04:05]} 20. f3 {[%emt 0:03:56]} Ne5 {[%emt 0:06:54]} 21. cxd5 {[%emt 0:00:53]} exd5 {[%emt 0:00:03]} 22. Rxc8 {[%emt 0:09:32]} Rxc8 {[%emt 0:00:04]} 23. Qd4 {[%emt 0:00:21]} Qe6 {[%emt 0:05:38]} 24. Bc3 {[%emt 0:08:34]} f6 {[%emt 0:00:02]} 25. Ra1 {[%emt 0:00:23]} Qc6 {[%emt 0:00:23]} 26. Bb2 {[%emt 0:03:01]} b5 {[%emt 0:00:37] [#]} (26... Qe6 $14 {is superior.}) 27. Qc5 {[%emt 0:03:03]} (27. Qd1 $1 $16) 27... Qxc5 $14 {[%emt 0:01:53]} 28. bxc5 {[%emt 0:00:13]} Rxc5 {[%emt 0:01:16]} 29. Bd4 {[%emt 0:00:23]} Rc2 {[%emt 0:00:04]} 30. Bxb5 {[%emt 0:02:14]} Nc6 {[%emt 0:01:07]} 31. h4 {[%emt 0:03:01]} Nxd4 {[%emt 0:00:22]} 32. exd4 {[%emt 0:00:02]} Rb2 {[%emt 0:00:06]} 33. Bd7 {[%emt 0:00:27]} Kf8 {[%emt 0:01:40]} 34. Ra7 {[%emt 0:00:34]} Rb6 {[%emt 0:00:26]} 35. h5 {[%emt 0:00:43]} h6 {[%emt 0:00:36]} 36. Kf2 {[%emt 0:02:11]} Ba6 {[%emt 0:00:09]} 37. Bf5 {[%emt 0:00:47]} Bb7 {[%emt 0:00:52]} 38. Bd7 {[%emt 0:00:30]} Ba6 $1 {[%emt 0:00:04]} 39. Ra8+ {[%emt 0:00:45]} Ke7 {[%emt 0:00:03]} 40. Bf5 {[%emt 0:00:06]} Bb5 {[%emt 0:01:29]} 41. Ra7+ {[%emt 0:31:40]} Kf8 {[%emt 0:03:11]} 42. Bg6 {[%emt 0:00:00]} Rb8 $1 {[%emt 0:00:32]} 43. g4 {[%emt 0:00:00]} Rd8 {[%emt 0:04:14]} 44. Rf7+ {[%emt 0:00:00]} Kg8 {[%emt 0:00:04]} 45. Rb7 {[%emt 0:00:00]} Bd7 {[%emt 0:03:25]} 46. Ke3 {[%emt 0:00:00]} (46. Rb6 $16) 46... Kf8 $1 $11 {[%emt 0:00:07]} 47. Kf4 {[%emt 0:00:00]} Be6 $1 {[%emt 0:02:06]} 48. Bf5 {[%emt 0:00:00]} Bf7 {[%emt 0:00:05]} 49. Kg3 {[%emt 0:00:00]} Ra8 {[%emt 0:03:00]} 50. Kh4 {[%emt 0:04:31]} Ra4 {[%emt 0:11:22]} 51. Bg6 {[%emt 0:02:02]} Bxg6 {[%emt 0:00:16]} 52. hxg6 {[%emt 0:00:03]} Rxd4 {[%emt 0:00:04]} 53. Rf7+ {[%emt 0:00:20]} Kg8 {[%emt 0:00:04]} 54. Rd7 {[%emt 0:00:05]} Kf8 {[%emt 0:00:03]} 55. Kg3 {[%emt 0:01:03]} Ra4 {[%emt 0:02:27]} 56. Rd8+ {[%emt 0:01:18]} Ke7 {[%emt 0:00:04]} 57. Rg8 {[%emt 0:00:04]} f5 $1 {[%emt 0:00:51]} 58. Rxg7+ {[%emt 0:00:08]} (58. gxf5 $5 Kf6 $8 59. Rf8+ Kg5 60. Rf7 $11) 58... Kf6 {[%emt 0:00:03]} 59. Rf7+ {[%emt 0:00:09]} Kxg6 {[%emt 0:00:05]} 60. Rxf5 {[%emt 0:00:04]} (60. gxf5+ {leads to mate.} Kxf7 61. Kf2 Kf6 62. Ke3 Kxf5 63. Ke2 h5 64. Kf2 h4 65. f4 h3 (65... Kxf4 66. Ke2 Rd4 67. Kf2 h3 68. Kf1 Kf3 69. Kg1 Rd1+ 70. Kh2 d4 71. Kxh3 Rh1#) 66. Ke3 h2 (66... Rxf4 {is a self mate.} 67. Ke2 h2 68. Kd2 h1=Q 69. Ke3 Qe4+ 70. Kd2 Rf2+ 71. Kd1 Qh1#) 67. Kd2 h1=Q (67... h1=R 68. Ke2 Rh2+ 69. Kd3 Ra3+ 70. Kd4 Rc2 71. Kxd5 Rd3#) 68. Kc2 Ra2+ (68... Kxf4 69. Kb3 Qd1+ 70. Kc3 Rc4+ 71. Kb2 Qc2+ 72. Ka3 Ra4#) 69. Kb3 Qb1+ 70. Kc3 Qb2+ 71. Kd3 Qd2#) 60... Ra5 {[%emt 0:02:23]} 61. Kf4 {[%emt 0:02:02]} Kg7 {[%emt 0:01:11]} 1/2-1/2